fUSD/lending_fUSD_20241215
["ID","MTS","AMOUNT","RATE_DAILY","PERIOD"]
[345483850,1734285043494,-500.0,0.00019484,3]
[345483851,1734285043504,-500.0,0.00019484,3]
[345483852,1734285043515,-177.27,0.00019484,3]
[345483853,1734285043526,-210.77,0.00019484,3]
[345483854,1734285043535,-716.66,0.00019484,3]
[345483855,1734285043544,-716.66,0.00019484,3]
[345483856,1734285043553,-500.0,0.00019484,3]
[345483857,1734285043563,-500.0,0.00019484,3]
[345483858,1734285043573,-500.0,0.00019484,3]
[345483859,1734285043583,-500.0,0.00019484,3]
[345483860,1734285043592,-500.0,0.00019484,3]
[345483861,1734285043601,-500.0,0.00019484,3]
[345483862,1734285043611,-500.0,0.00019484,3]
[345483863,1734285043620,-500.0,0.00019484,3]
[345483864,1734285043629,-500.0,0.00019484,3]
[345483865,1734285043638,-223.57,0.00019484,3]
[345483866,1734285043647,-917.83,0.00019484,3]
[345483867,1734285043656,-917.83,0.00019484,3]
[345483868,1734285043666,-350.98,0.00019484,3]
[345483869,1734285043676,-500.0,0.00019484,3]
[345483870,1734285043686,-307.97,0.00019484,3]
[345483871,1734285043695,-500.0,0.00019484,3]
[345483872,1734285043705,-500.0,0.00019484,3]
[345483873,1734285043714,-500.0,0.00019484,3]
[345483874,1734285043723,-500.0,0.00019484,3]
[345483875,1734285043733,-500.0,0.00019484,3]
[345483876,1734285043742,-269.11,0.00019484,3]
[345483877,1734285043751,-259.2456,0.00019484,2]
[345483878,1734285043763,-26404.21396977,0.00019485,2]
[345483879,1734285043802,-10016.34431864,0.00019485,2]
[345483880,1734285045812,-103597.75021724,0.00019485,2]
[345483881,1734285045927,-253821.76229435,0.00019485,2]
[345483882,1734285045937,-715.81615298,0.00019499,2]
[345483883,1734285045946,-715.81615298,0.00019556,2]
[345483884,1734285045956,-446.53,0.00019582,3]
[345483885,1734285045967,-468.0,0.00019582,3]
[345483886,1734285045976,-500.0,0.00019582,3]
[345483887,1734285045985,-500.0,0.00019582,3]
[345483888,1734285045994,-500.0,0.00019582,3]
[345483889,1734285046003,-264.83,0.00019582,3]
[345483890,1734285046012,-500.0,0.00019582,3]
[345483891,1734285046022,-633.21023758,0.00019582,3]
[345483892,1734285046031,-500.0,0.00019582,3]
[345483893,1734285046040,-500.0,0.00019582,3]
[345483894,1734285046049,-500.0,0.00019582,3]
[345483895,1734285046058,-500.0,0.00019582,3]
[345483896,1734285046067,-173.08,0.00019582,3]
[345483897,1734285046076,-229.84,0.00019582,3]
[345483898,1734285046084,-151.29,0.00019582,3]
[345483899,1734285046094,-500.0,0.00019582,3]
[345483900,1734285046103,-481.77,0.00019582,3]
[345483901,1734285046112,-476.17,0.00019582,3]
[345483902,1734285046121,-252.35,0.00019582,3]
[345483903,1734285046130,-500.0,0.00019582,3]
[345483904,1734285046139,-500.0,0.00019582,3]
[345483905,1734285046148,-500.0,0.00019582,3]
[345483906,1734285046157,-500.0,0.00019582,3]
[345483908,1734285046167,-234.05,0.00019582,3]
[345483909,1734285046176,-286.37,0.00019582,3]
[345483911,1734285046185,-542.65,0.00019582,3]
[345483912,1734285046195,-387.69,0.00019582,3]
[345483913,1734285046204,-500.0,0.00019582,3]
[345483914,1734285046213,-367.35,0.00019582,3]
[345483915,1734285046223,-500.0,0.00019582,3]
[345483916,1734285046232,-500.0,0.00019582,3]
[345483917,1734285046241,-500.0,0.00019582,3]
[345483918,1734285046250,-500.0,0.00019582,3]
[345483919,1734285046259,-500.0,0.00019582,3]
[345483920,1734285046270,-500.0,0.00019582,3]
[345483921,1734285046279,-493.15,0.00019582,3]
[345483922,1734285046288,-500.0,0.00019582,3]
[345483923,1734285046298,-268.48,0.00019582,3]
[345483924,1734285046308,-204.45,0.00019582,3]
[345483925,1734285046319,-500.0,0.00019582,3]
[345483926,1734285046329,-500.0,0.00019582,3]
[345483927,1734285046338,-500.0,0.00019582,3]
[345483928,1734285046347,-500.0,0.00019582,3]
[345483929,1734285046357,-445.87852864,0.00019582,3]
[345483930,1734285046369,-168.01998497,0.00019582,3]
[345483931,1734285046380,-500.0,0.00019582,3]
[345483932,1734285046391,-500.0,0.00019582,3]
[345483933,1734285046402,-500.0,0.00019582,3]
[345483934,1734285046411,-500.0,0.00019582,3]
[345483935,1734285046420,-500.0,0.00019582,3]
[345483936,1734285046429,-500.0,0.00019582,3]
[345483937,1734285046439,-500.0,0.00019582,3]
[345483938,1734285046448,-500.0,0.00019582,3]
[345483939,1734285046457,-500.0,0.00019582,3]
[345483940,1734285046466,-500.0,0.00019582,3]
[345483941,1734285046476,-500.0,0.00019582,3]
[345483942,1734285046486,-166.58,0.00019582,3]
[345483943,1734285046494,-500.0,0.00019582,3]
[345483944,1734285046503,-500.0,0.00019582,3]
[345483945,1734285046514,-500.0,0.00019582,3]
[345483946,1734285046526,-500.0,0.00019582,3]
[345483947,1734285046535,-500.0,0.00019582,3]
[345483948,1734285046544,-626.95,0.00019582,3]
[345483949,1734285046554,-500.0,0.00019582,3]
[345483950,1734285046564,-500.0,0.00019582,3]
[345483951,1734285046574,-500.0,0.00019583,3]
[345483952,1734285046585,-500.0,0.00019583,3]
[345483953,1734285046595,-500.0,0.00019583,3]
[345483954,1734285046604,-2029.46,0.00019583,3]
[345483955,1734285046614,-500.0,0.00019583,3]
[345483956,1734285046623,-500.0,0.00019583,3]
[345483957,1734285046639,-449.52,0.00019583,3]
[345483958,1734285046663,-274.36,0.00019583,3]
[345483959,1734285046686,-500.0,0.00019583,3]
[345483960,1734285046709,-500.0,0.00019583,3]
[345483961,1734285046731,-500.0,0.00019583,3]
[345483962,1734285046952,-500.0,0.00019583,3]
[345483963,1734285046962,-500.0,0.00019583,3]
[345483964,1734285046972,-500.0,0.00019583,3]
[345483965,1734285046983,-736.58,0.00019583,3]
[345483966,1734285046992,-618.28,0.00019583,3]
[345483967,1734285047001,-579.5,0.00019583,3]
[345483968,1734285047010,-500.0,0.00019583,3]
[345483969,1734285047019,-651.52,0.00019583,3]
[345483970,1734285047029,-500.0,0.00019583,3]
[345483971,1734285047038,-500.0,0.00019583,3]
[345483972,1734285047047,-402.39,0.00019583,3]
[345483973,1734285047057,-500.0,0.00019583,3]
[345483974,1734285047067,-318.14,0.00019583,3]
[345483975,1734285047077,-500.0,0.00019583,3]
[345483976,1734285047086,-500.0,0.00019583,3]
[345483977,1734285047095,-500.0,0.00019583,3]
[345483978,1734285047106,-500.0,0.00019583,3]
[345483979,1734285047117,-311.46,0.00019583,3]
[345483980,1734285047126,-500.0,0.00019583,3]
[345483981,1734285047139,-500.0,0.00019583,3]
[345483982,1734285047148,-500.0,0.00019583,3]
[345483983,1734285047157,-332.45,0.00019583,3]
[345483984,1734285047167,-500.0,0.00019583,3]
[345483985,1734285047177,-500.0,0.00019583,3]
[345483986,1734285047186,-500.0,0.00019583,3]
[345483987,1734285047197,-500.0,0.00019583,3]
[345483988,1734285047207,-500.0,0.00019583,3]
[345483989,1734285047216,-72.11843381,0.00019583,3]
[345483990,1734285047228,-427.88156619,0.00019583,3]
[345483991,1734285047238,-72.11843381,0.00019583,3]
[345483992,1734285047251,-427.88156619,0.00019583,3]
[345483993,1734285047260,-500.0,0.00019583,3]
[345483994,1734285047271,-225.32788545,0.00019583,3]
[345483995,1734285047286,-274.67211455,0.00019583,3]
[345483996,1734285047295,-500.0,0.00019583,3]
[345483997,1734285047304,-500.0,0.00019583,3]
[345483998,1734285047314,-601.54,0.00019583,3]
[345483999,1734285047324,-500.0,0.00019583,3]
[345484000,1734285047334,-20.72607745,0.00019583,3]
[345484001,1734285047346,-479.27392255,0.00019583,3]
[345484002,1734285047356,-716.66,0.00019583,3]
[345484003,1734285047367,-530.4,0.00019583,3]
[345484004,1734285047376,-500.0,0.00019583,3]
[345484005,1734285047387,-917.83,0.00019583,3]
[345484006,1734285047399,-500.0,0.00019583,3]
[345484007,1734285047410,-500.0,0.00019584,3]
[345484008,1734285047420,-543.65,0.00019584,3]
[345484009,1734285047430,-500.0,0.00019584,3]
[345484010,1734285047442,-365.96,0.00019584,3]
[345484011,1734285047453,-500.0,0.00019584,3]
[345484012,1734285047463,-500.0,0.00019584,3]
[345484013,1734285047475,-253.87,0.00019584,3]
[345484014,1734285047485,-500.0,0.00019584,3]
[345484015,1734285047495,-84.58357745,0.00019584,3]
[345484016,1734285047506,-415.41642255,0.00019584,3]
[345484017,1734285047516,-500.0,0.00019584,3]
[345484018,1734285047528,-618.41,0.00019584,3]
[345484019,1734285047537,-157.72,0.00019584,3]
[345484020,1734285047547,-253.58,0.00019584,3]
[345484021,1734285047555,-500.0,0.00019584,3]
[345484022,1734285047565,-500.0,0.00019584,3]
[345484023,1734285047574,-500.0,0.00019584,3]
[345484024,1734285047584,-500.0,0.00019584,3]
[345484025,1734285047594,-346.08,0.00019584,3]
[345484026,1734285047604,-566.14,0.00019584,3]
[345484027,1734285047614,-211.72,0.00019584,3]
[345484028,1734285047623,-500.0,0.00019584,3]
[345484029,1734285047633,-500.0,0.00019584,3]
[345484030,1734285047643,-230.93357745,0.00019584,3]
[345484031,1734286000962,155.89,0.00010137,2]
[345484223,1734286232083,-152.38698513,0.00016,4]
[345484224,1734286232092,-951.57,0.00016681,2]
[345484225,1734286232101,-250.0,0.00017748,2]
[345484226,1734286232110,-155.89,0.00018065,2]
[345484227,1734286232119,-150.27,0.00018082,2]
[345484228,1734286232128,-213.31,0.00018082,2]
[345484229,1734286232137,-554.54712768,0.00018136,2]
[345484230,1734286232159,-445.45287232,0.00018136,2]
[345484231,1734286232168,-764.93,0.00018413,2]
[345484232,1734286232177,-741.56819305,0.00018545,2]
[345484233,1734286232188,-4258.43180695,0.00018545,2]
[345484234,1734286232197,-172.13566146,0.00018545,2]
[345484235,1734286232206,-1403.90191556,0.00018545,2]
[345484236,1734286232215,-302.87687698,0.00018545,2]
[345484237,1734286232224,-415.03475868,0.00018552,2]
[345484238,1734286232233,-430.51,0.00018566,2]
[345484239,1734286232242,-161.41,0.00018635,2]
[345484240,1734286232251,-161.41,0.00018635,2]
[345484241,1734286232260,-434.13,0.00018641,2]
[345484242,1734286232269,-850.0,0.00018644,2]
[345484243,1734286232278,-197547.32279474,0.00018645,4]
[345484244,1734286232289,-3463.66680285,0.00018645,4]
[345484245,1734286232300,-49019.83518217,0.00018645,4]
[345484246,1734286232314,-7466.52966741,0.00018645,4]
[345484247,1734286232323,-7805.06610353,0.00018645,2]
[345484248,1734286232334,-8535.81324286,0.00018645,2]
[345484249,1734286232344,-107834.81661714,0.00018645,2]
[345484250,1734286232389,-5630.04763451,0.00018645,2]
[345484251,1734286232410,-38333.88949858,0.00018645,2]
[345484252,1734286232499,-11461.78736453,0.00018645,2]
[345484253,1734286232510,-513.23718563,0.00018645,2]
[345484263,1734286238012,-394.999986,0.00018645,2]
[345484264,1734286238278,-1771.28400005,0.00018645,2]
[345484265,1734286238292,-39650.30381069,0.00018645,2]
[345484274,1734286240163,-1702.62926381,0.00018645,2]
[345484275,1734286240178,-115572.91275175,0.00018645,2]
[345484276,1734286240342,-1530.87319344,0.00018645,2]
[345484282,1734286246081,-457.57408281,0.00018645,2]
[345484283,1734286246152,-550.7905601,0.00018645,2]
[345484284,1734286246229,-1039.449305,0.00018645,2]
[345484285,1734286246241,-9788.07941371,0.00018645,2]
[345484286,1734286246252,-944.563044,0.00018645,2]
[345484287,1734286246324,-343.12440218,0.00018645,2]
[345484288,1734286246400,-41274.0020572,0.00018645,2]
[345484293,1734286390813,450.0,0.00013,2]
[345484294,1734286391894,500.0,0.00015,2]
[345484303,1734286936390,157.78,0.00010137,2]
[345484304,1734287116034,3000.0,0.00010137,2]
[345484305,1734287163979,683.95988,0.00010137,2]
[345484306,1734287206664,3000.0,0.00010137,2]
[345484307,1734287254484,209.89971,0.00010137,2]
[345484308,1734287297310,2500.0,0.00010137,2]
[345484310,1734287340111,209.8997169,0.00010137,2]
[345484316,1734287382900,2083.33333,0.00010137,2]
[345484325,1734287432199,-2083.33333,0.00015137,2]
[345484326,1734287432208,-903.99,0.00015781,2]
[345484327,1734287432218,-1016.39,0.00016798,2]
[345484328,1734287432227,-150.0,0.00017185,2]
[345484329,1734287432236,-300.0,0.00017677,2]
[345484330,1734287432245,-160426.35212095,0.00017678,2]
[345484331,1734287432257,-11210.31180495,0.00017678,2]
[345484332,1734287432268,-19464.31537838,0.00017678,2]
[345484333,1734287432283,-2310.14988369,0.00017678,2]
[345484334,1734287432304,-309.66045981,0.00017678,2]
[345484335,1734287432467,-19115.42226956,0.00017678,2]
[345484336,1734287432552,-331.9808074,0.00017678,2]
[345484337,1734287432563,-757.01750001,0.00017678,2]
[345484338,1734287432574,-6114.41555477,0.00017678,2]
[345484433,1734287438097,-4017.20483567,0.00017678,2]
[345484434,1734287438110,-2409.50123006,0.00017678,2]
[345484435,1734287438244,-665.17985081,0.00017678,2]
[345484436,1734287438259,-1812.59042715,0.00017678,2]
[345484437,1734287438274,-11631.07770157,0.00017678,2]
[345484438,1734287438285,-250.0,0.00017695,2]
[345484439,1734287438298,-1000.0,0.00017753,2]
[345484440,1734287438309,-250.0,0.00017775,2]
[345484441,1734287438323,-358.75,0.00018035,2]
[345484442,1734287438335,-903.99,0.00018045,2]
[345484443,1734287438346,-205.08,0.00018058,2]
[345484444,1734287438357,-157.78,0.00018065,2]
[345484445,1734287438371,-150.27,0.00018082,2]
[345484446,1734287438381,-170.64,0.00018082,2]
[345484447,1734287438392,-170.26,0.00018379,2]
[345484448,1734287438404,-557.23,0.00018384,2]
[345484449,1734287438414,-436.08,0.000184,2]
[345484450,1734287438426,-32922.7143,0.00018545,2]
[345484451,1734287438438,-393.4212,0.00018545,2]
[345484453,1734287438450,-2500.0,0.00018545,2]
[345484455,1734287438460,-1298.42212145,0.00018545,2]
[345484457,1734287438471,-332.02780694,0.00018545,2]
[345484459,1734287438482,-172.13566146,0.00018545,2]
[345484461,1734287438493,-272.5891893,0.00018545,2]
[345484463,1734287438505,-386.21431696,0.00018564,2]
[345484465,1734287438516,-3175.54156597,0.000186,2]
[345484467,1734287438526,-161.41,0.00018635,2]
[345484469,1734287438537,-161.41,0.00018635,2]
[345484471,1734287438549,-1000.0,0.00018644,2]
[345484473,1734287438559,-45410.95164912,0.00018645,4]
[345484478,1734287438594,-1363.83747749,0.00018645,4]
[345484480,1734287438608,-2481.71968577,0.00018645,4]
[345484483,1734287438625,-517.7691157,0.00018645,4]
[345484484,1734287438638,-2626.8,0.00018645,4]
[345484485,1734287438651,-76347.59929551,0.00018645,4]
[345484486,1734287438662,-8170.43967319,0.00018645,2]
[345484487,1734287438676,-180169.21595974,0.00018645,2]
[345484635,1734287440210,-1559.21999956,0.00018645,2]
[345484646,1734287440318,-7789.51456006,0.00018645,2]
[345484649,1734287440333,-7855.52779728,0.00018645,2]
[345484651,1734287440347,-16150.61126051,0.00018645,2]
[345484653,1734287440362,-8790.22599035,0.00018645,2]
[345484657,1734287440441,-10310.28202644,0.00018645,2]
[345484658,1734287440454,-821.3856335,0.00018645,2]
[345484659,1734287440542,-35959.93873549,0.00018645,2]
[345484673,1734287443150,-3053.58076263,0.00018645,2]
[345484674,1734287443162,-2175.152733,0.00018645,2]
[345484675,1734287443174,-15113.95,0.00018645,2]
[345484676,1734287443391,-1146.00178824,0.00018645,2]
[345484677,1734287443404,-433.90147,0.00018645,2]
[345484678,1734287443415,-485.305,0.00018645,2]
[345484681,1734287446158,-287.3780046,0.00018645,2]
[345484682,1734287446170,-475.66000002,0.00018645,2]
[345484683,1734287446181,-8535.60425777,0.00018645,2]
[345484684,1734287446258,-500.0,0.00018645,2]
[345484685,1734287446417,-2149.357475,0.00018645,2]
[345484686,1734287446428,-15158.41773,0.00018645,2]
[345484688,1734287455431,500.0,0.0001428,2]
[345484689,1734287466942,500.0,8.219e-05,30]
[345484690,1734287467385,500.0,8.219e-05,30]
[345484691,1734287467929,500.0,8.219e-05,30]
[345484692,1734287468299,500.0,8.219e-05,30]
[345484693,1734287468736,500.0,8.219e-05,30]
[345484694,1734287469311,500.0,8.219e-05,30]
[345484695,1734287469741,500.0,8.219e-05,30]
[345484696,1734287470178,500.0,8.219e-05,30]
[345484697,1734287470607,500.0,8.219e-05,30]
[345484698,1734287471021,500.0,8.219e-05,30]
[345484699,1734287471473,500.0,8.219e-05,30]
[345484700,1734287471908,500.0,8.219e-05,30]
[345484701,1734287472342,500.0,8.219e-05,30]
[345484702,1734287472773,500.0,8.219e-05,30]
[345484703,1734287473228,500.0,8.219e-05,30]
[345484704,1734287473669,500.0,8.219e-05,30]
[345484705,1734287474101,500.0,8.219e-05,30]
[345484706,1734287475114,500.0,8.219e-05,30]
[345484707,1734287475534,500.0,8.219e-05,30]
[345484708,1734287475948,500.0,8.219e-05,30]
[345484709,1734287476379,500.0,8.219e-05,30]
[345484710,1734287476800,500.0,8.219e-05,30]
[345484711,1734287477239,500.0,8.219e-05,30]
[345484712,1734287477684,500.0,8.219e-05,30]
[345484713,1734287478284,500.0,8.219e-05,30]
[345484714,1734287478517,500.0,8.219e-05,30]
[345484715,1734287478936,500.0,8.219e-05,30]
[345484716,1734287479390,500.0,8.219e-05,30]
[345484717,1734287479809,500.0,8.219e-05,30]
[345484718,1734287480264,500.0,8.219e-05,30]
[345484719,1734287480664,500.0,8.219e-05,30]
[345484720,1734287481090,500.0,8.219e-05,30]
[345484721,1734287481521,500.0,8.219e-05,30]
[345484722,1734287481897,500.0,8.219e-05,30]
[345484723,1734287482348,500.0,8.219e-05,30]
[345484724,1734287482881,500.0,8.219e-05,30]
[345484725,1734287483207,500.0,8.219e-05,30]
[345484726,1734287483626,500.0,8.219e-05,30]
[345484727,1734287484050,500.0,8.219e-05,30]
[345484728,1734287484472,500.0,8.219e-05,30]
[345484729,1734287484907,500.0,8.219e-05,30]
[345484730,1734287485315,500.0,8.219e-05,30]
[345484731,1734287485733,500.0,8.219e-05,30]
[345484732,1734287486174,504.02613093,8.219e-05,30]
[345484733,1734287601784,600.0,0.00015,2]
[345484734,1734287771116,156.19,0.00013699,2]
[345484735,1734287856363,243.98,0.00010137,2]
[345484737,1734287868200,2500.0,0.00019178,120]
[345484738,1734287868469,2500.0,0.00019178,120]
[345484739,1734287868709,624.79241165,0.00019178,120]
[345484740,1734287944215,342.19,0.00017831,30]
[345484742,1734288194248,450.0,0.00013,2]
[345484743,1734288603504,153.0,0.00019,30]
[345484744,1734288603811,153.0,0.00019,30]
[345484748,1734288632396,-868.91,0.0001525,2]
[345484749,1734288632407,-1573.46418045,0.0001692,2]
[345484750,1734288632417,-151.61663114,0.0001692,2]
[345484751,1734288632427,-500.0,0.0001702,2]
[345484752,1734288632437,-2091.34,0.0001706,2]
[345484753,1734288632447,-300.0,0.00017287,2]
[345484754,1734288632457,-23900.0,0.00017288,2]
[345484755,1734288632468,-353.26,0.00017317,2]
[345484756,1734288632479,-268.59,0.00017382,2]
[345484757,1734288632491,-250.0,0.00017462,2]
[345484758,1734288632500,-200.0,0.00017482,2]
[345484759,1734288632513,-250.0,0.00017497,2]
[345484760,1734288632522,-868.91,0.00017514,2]
[345484761,1734288632532,-250.0,0.00017534,2]
[345484762,1734288632542,-500.0,0.00017568,2]
[345484763,1734288632552,-700.0,0.00017568,2]
[345484764,1734288632562,-200.0,0.00017585,2]
[345484765,1734288632571,-1000.0,0.00017621,2]
[345484766,1734288632582,-1500.0,0.00017628,2]
[345484767,1734288632592,-299.81,0.00017636,2]
[345484768,1734288632601,-436.27,0.00017641,2]
[345484769,1734288632613,-373.32,0.00017829,2]
[345484770,1734288632623,-436.27,0.00017841,2]
[345484771,1734288632632,-436.27,0.00017841,2]
[345484772,1734288632641,-151.72,0.00017978,2]
[345484773,1734288632650,-151.03,0.00017978,2]
[345484774,1734288632661,-636.4636,0.00018,2]
[345484775,1734288632670,-479.64,0.00018082,2]
[345484776,1734288632681,-688.49,0.00018101,2]
[345484777,1734288632690,-436.27,0.000182,2]
[345484778,1734288632700,-373.7,0.000182,2]
[345484779,1734288632711,-32322.7143,0.00018445,2]
[345484780,1734288632722,-1447.86308854,0.00018445,2]
[345484781,1734288632733,-436.27,0.000185,2]
[345484782,1734288632742,-436.27,0.000185,2]
[345484783,1734288632755,-436.27,0.000185,2]
[345484784,1734288632764,-500.0,0.00018544,2]
[345484785,1734288632773,-158.0651198,0.00018544,2]
[345484786,1734288632782,-167.70528516,0.00018544,2]
[345484787,1734288632791,-500.0,0.00018544,2]
[345484788,1734288632801,-500.0,0.00018544,2]
[345484789,1734288632810,-500.0,0.00018544,2]
[345484790,1734288632819,-500.0,0.00018544,2]
[345484791,1734288632828,-500.0,0.00018544,2]
[345484792,1734288632841,-500.0,0.00018544,2]
[345484793,1734288632851,-500.0,0.00018544,2]
[345484794,1734288632863,-439.34574576,0.00018544,2]
[345484795,1734288632872,-500.0,0.00018544,2]
[345484796,1734288632882,-500.0,0.00018544,2]
[345484797,1734288632891,-400.0,0.00018544,2]
[345484798,1734288632900,-500.0,0.00018544,2]
[345484799,1734288632911,-500.0,0.00018544,2]
[345484800,1734288632921,-500.0,0.00018544,2]
[345484801,1734288632931,-500.0,0.00018544,2]
[345484802,1734288632939,-500.0,0.00018544,2]
[345484803,1734288632948,-500.0,0.00018544,2]
[345484804,1734288632958,-238.1357901,0.00018544,2]
[345484805,1734288632967,-248.68175445,0.00018544,2]
[345484806,1734288632978,-207771.208,0.00018545,2]
[345484807,1734288632988,-459.19596534,0.00018545,2]
[345484808,1734288632997,-276.68983912,0.00018545,2]
[345484809,1734288633007,-245.33027037,0.00018545,2]
[345484810,1734288633016,-172.13566146,0.00018545,2]
[345484811,1734288633025,-3650.624,0.00018552,2]
[345484812,1734288633034,-152.913,0.00018552,2]
[345484813,1734288633044,-378.99442376,0.00018556,2]
[345484814,1734288633053,-436.27,0.000186,2]
[345484815,1734288633063,-436.27,0.000186,2]
[345484816,1734288633072,-200.0,0.000186,6]
[345484817,1734288633081,-1447.86308846,0.00018607,2]
[345484818,1734288633091,-161.41,0.00018635,2]
[345484819,1734288633100,-64374.3386118,0.00018645,4]
[345484820,1734288633113,-1741.15785163,0.00018645,2]
[345484821,1734288633145,-5523.7705586,0.00018645,2]
[345484822,1734288633155,-3785.5294424,0.00018645,2]
[345484823,1734288633167,-1122.046,0.00018645,2]
[345484824,1734288633178,-28998.98393581,0.00018645,2]
[345484825,1734288633189,-2399.8,0.00018645,2]
[345484826,1734288633220,-4533.91972168,0.00018645,2]
[345484830,1734288638545,-238068.48588909,0.00018645,2]
[345484831,1734288638557,-1280.63435852,0.00018645,2]
[345484832,1734288638570,-2829.87196898,0.00018645,2]
[345484839,1734288640628,-17282.12383539,0.00018645,2]
[345484852,1734288643491,-572.4865023,0.00018645,2]
[345484853,1734288643503,-1127.44914269,0.00018645,2]
[345484859,1734288643917,-4621.75550525,0.00018645,2]
[345484861,1734288643928,-2396.5189944,0.00018645,2]
[345484863,1734288643939,-1836.16629,0.00018645,2]
[345484865,1734288643951,-679.30499915,0.00018645,2]
[345484869,1734288643974,-511.989998,0.00018645,2]
[345484871,1734288643985,-6844.0,0.00018645,2]
[345484873,1734288643998,-241350.000005,0.00018645,2]
[345484897,1734288646336,-52785.20873938,0.00018645,2]
[345484898,1734288646348,-325.91,0.00018645,2]
[345484899,1734288646359,-427095.40572489,0.00018645,2]
[345484900,1734288646368,-366.33808658,0.00018645,2]
[345484901,1734288646383,-200.0,0.00018645,2]
[345484902,1734288646392,-1388.88889,0.00018645,2]
[345484903,1734288646402,-700.0,0.00018664,2]
[345484904,1734288646411,-514.81748237,0.00018673,2]
[345484905,1734288646420,-159.608144,0.00018673,2]
[345484906,1734288646429,-1000.0,0.00018673,2]
[345484907,1734288646588,-1000.0,0.00018673,2]
[345484908,1734288646597,-1000.0,0.00018673,2]
[345484909,1734288646606,-1000.0,0.00018673,2]
[345484910,1734288646615,-1000.0,0.00018673,2]
[345484911,1734288646626,-1000.0,0.00018673,2]
[345484912,1734288646635,-1000.0,0.00018673,2]
[345484913,1734288646644,-1000.0,0.00018673,2]
[345484914,1734288646653,-1000.0,0.00018673,2]
[345484915,1734288646662,-1000.0,0.00018673,2]
[345484916,1734288646671,-1000.0,0.00018673,2]
[345484917,1734288646679,-1000.0,0.00018673,2]
[345484918,1734288646689,-1000.0,0.00018673,2]
[345484919,1734288646698,-1000.0,0.00018673,2]
[345484920,1734288646707,-1000.0,0.00018673,2]
[345484921,1734288646715,-1000.0,0.00018673,2]
[345484922,1734288646724,-1000.0,0.00018673,2]
[345484923,1734288646733,-1000.0,0.00018673,2]
[345484924,1734288646742,-1000.0,0.00018673,2]
[345484925,1734288646751,-1000.0,0.00018673,2]
[345484926,1734288646760,-1000.0,0.00018673,2]
[345484927,1734288646769,-1000.0,0.00018673,2]
[345484928,1734288646777,-1000.0,0.00018673,2]
[345484929,1734288646786,-1000.0,0.00018673,2]
[345484930,1734288646795,-1000.0,0.00018673,2]
[345484931,1734288646804,-1000.0,0.00018673,2]
[345484932,1734288646812,-1000.0,0.00018673,2]
[345484933,1734288646821,-1000.0,0.00018673,2]
[345484934,1734288646830,-1000.0,0.00018673,2]
[345484935,1734288646844,-1000.0,0.00018673,2]
[345484936,1734288646853,-1000.0,0.00018673,2]
[345484937,1734288646862,-1000.0,0.00018673,2]
[345484938,1734288646873,-1000.0,0.00018673,2]
[345484939,1734288646882,-1000.0,0.00018673,2]
[345484940,1734288646892,-1000.0,0.00018673,2]
[345484941,1734288646900,-1045.0,0.00018673,2]
[345484942,1734288646909,-245.33027029,0.00018696,2]
[345484943,1734288646919,-728.174,0.000187,2]
[345484944,1734288646928,-1000.0,0.000187,2]